fUSD/lending_fUSD_20240612
["ID","MTS","AMOUNT","RATE_DAILY","PERIOD"]
[329239362,1718196662699,-500.0,0.00019589,2]
[329239363,1718196662723,-500.0,0.00019589,2]
[329239364,1718196662733,-500.0,0.00019589,2]
[329239365,1718196662753,-500.0,0.00019589,2]
[329239366,1718196662764,-1573.61,0.00019589,2]
[329239367,1718196662775,-500.0,0.00019589,2]
[329239368,1718196662788,-500.0,0.00019589,2]
[329239369,1718196662801,-790.53,0.00019589,2]
[329239370,1718196662812,-500.0,0.00019589,2]
[329239371,1718196662824,-500.0,0.00019589,2]
[329239372,1718196662835,-500.0,0.00019589,2]
[329239373,1718196662846,-500.0,0.00019589,2]
[329239374,1718196662857,-500.0,0.00019589,2]
[329239375,1718196662868,-201.97389406,0.00019589,2]
[329239376,1718196662880,-500.0,0.00019589,2]
[329239377,1718196662891,-224.36112358,0.00019589,2]
[329239378,1718196662902,-500.0,0.00019589,2]
[329239379,1718196662921,-500.0,0.00019589,2]
[329239380,1718196662934,-170.82,0.00019649,2]
[329239381,1718196662945,-338.68138464,0.00019725,5]
[329239382,1718196662956,-500.0,0.00019726,2]
[329239383,1718196662967,-500.0,0.00019726,2]
[329239384,1718196662979,-500.0,0.00019726,2]
[329239385,1718196662991,-500.0,0.00019726,2]
[329239386,1718196663012,-500.0,0.00019726,2]
[329239387,1718196663030,-500.0,0.00019726,2]
[329239388,1718196663051,-500.0,0.00019726,2]
[329239389,1718196663072,-500.0,0.00019726,2]
[329239390,1718196663084,-644.43282675,0.00019726,2]
[329239391,1718196663102,-500.0,0.00019726,2]
[329239392,1718196663124,-500.0,0.00019726,2]
[329239393,1718196663142,-500.0,0.00019726,2]
[329239394,1718196663154,-610.53,0.00019726,2]
[329239395,1718196663333,-500.0,0.00019726,2]
[329239396,1718196663345,-977.0,0.00019726,2]
[329239397,1718196663356,-500.0,0.00019726,2]
[329239398,1718196663367,-500.0,0.00019726,2]
[329239399,1718196663382,-607.52,0.00019726,2]
[329239400,1718196663395,-500.0,0.00019726,2]
[329239401,1718196663409,-500.0,0.00019726,2]
[329239402,1718196663420,-818.8,0.00019726,2]
[329239403,1718196663432,-500.0,0.00019726,2]
[329239404,1718196663443,-500.0,0.00019726,2]
[329239405,1718196663463,-500.0,0.00019726,2]
[329239406,1718196663494,-778.08,0.00019726,2]
[329239407,1718196663507,-500.0,0.00019726,2]
[329239408,1718196663518,-595.62,0.00019726,2]
[329239409,1718196663547,-500.0,0.00019726,2]
[329239410,1718196663560,-555.08,0.00019726,2]
[329239411,1718196663571,-370.1451109,0.00019726,2]
[329239412,1718196663588,-500.0,0.00019726,2]
[329239413,1718196663601,-500.0,0.00019726,2]
[329239414,1718196663614,-500.0,0.00019726,2]
[329239415,1718196663632,-758.41,0.00019726,2]
[329239416,1718196663645,-500.0,0.00019726,2]
[329239417,1718196663667,-500.0,0.00019726,2]
[329239418,1718196663679,-500.0,0.00019726,2]
[329239419,1718196663691,-500.0,0.00019726,2]
[329239420,1718196663705,-500.0,0.00019726,2]
[329239421,1718196663720,-283.1711765,0.00019726,2]
[329239422,1718196663743,-500.0,0.00019726,2]
[329239423,1718196663774,-500.0,0.00019726,2]
[329239424,1718196663787,-500.0,0.00019726,2]
[329239425,1718196663806,-868.83,0.00019726,2]
[329239426,1718196663824,-500.0,0.00019726,2]
[329239427,1718196663836,-500.0,0.00019726,2]
[329239428,1718196663851,-500.0,0.00019726,2]
[329239429,1718196663876,-500.0,0.00019726,2]
[329239430,1718196663911,-500.0,0.00019726,2]
[329239431,1718196663926,-500.0,0.00019726,2]
[329239432,1718196663947,-500.0,0.00019726,2]
[329239433,1718196663960,-1573.61,0.00019726,2]
[329239434,1718196663978,-500.0,0.00019726,2]
[329239435,1718196664004,-500.0,0.00019726,2]
[329239436,1718196664016,-790.53,0.00019726,2]
[329239437,1718196664041,-500.0,0.00019726,2]
[329239438,1718196664059,-500.0,0.00019726,2]
[329239439,1718196664076,-379.04,0.00019726,2]
[329239440,1718196664104,-500.0,0.00019726,2]
[329239441,1718196664117,-500.0,0.00019726,2]
[329239442,1718196664141,-500.0,0.00019726,2]
[329239443,1718196664173,-500.0,0.00019726,2]
[329239444,1718196664189,-500.0,0.00019726,2]
[329239445,1718196664204,-500.0,0.0001984,2]
[329239446,1718196664224,-1806.44529912,0.00019859,2]
[329239447,1718196664235,-624.5970728,0.00019863,2]
[329239448,1718196664247,-522.21125709,0.00019863,2]
[329239449,1718196664289,-500.0,0.00019863,2]
[329239450,1718196664303,-500.0,0.00019863,2]
[329239451,1718196664316,-500.0,0.00019863,2]
[329239452,1718196664333,-500.0,0.00019863,2]
[329239453,1718196664346,-500.0,0.00019863,2]
[329239454,1718196664364,-500.0,0.00019863,2]
[329239455,1718196664380,-500.0,0.00019863,2]
[329239456,1718196664409,-500.0,0.00019863,2]
[329239457,1718196664420,-610.53,0.00019863,2]
[329239458,1718196664431,-513.83619977,0.00019863,2]
[329239459,1718196664444,-977.0,0.00019863,2]
[329239460,1718196664457,-500.0,0.00019863,2]
[329239461,1718196664468,-500.0,0.00019863,2]
[329239462,1718196664480,-607.52,0.00019863,2]
[329239463,1718196664491,-500.0,0.00019863,2]
[329239464,1718196664502,-500.0,0.00019863,2]
[329239465,1718196664513,-818.8,0.00019863,2]
[329239466,1718196664524,-500.0,0.00019863,2]
[329239467,1718196664536,-500.0,0.00019863,2]
[329239468,1718196664547,-778.08,0.00019863,2]
[329239469,1718196664558,-595.62,0.00019863,2]
[329239470,1718196664569,-500.0,0.00019863,2]
[329239471,1718196664580,-500.0,0.00019863,2]
[329239472,1718196664591,-555.08,0.00019863,2]
[329239473,1718196664602,-500.0,0.00019863,2]
[329239474,1718196664618,-500.0,0.00019863,2]
[329239475,1718196664629,-500.0,0.00019863,2]
[329239476,1718196664640,-758.41,0.00019863,2]
[329239477,1718196664651,-500.0,0.00019863,2]
[329239478,1718196664665,-500.0,0.00019863,2]
[329239479,1718196664676,-500.0,0.00019863,2]
[329239480,1718196664688,-500.0,0.00019863,2]
[329239481,1718196664701,-500.0,0.00019863,2]
[329239482,1718196664727,-500.0,0.00019863,2]
[329239483,1718196664746,-500.0,0.00019863,2]
[329239484,1718196664770,-868.83,0.00019863,2]
[329239485,1718196664784,-500.0,0.00019863,2]
[329239486,1718196664810,-500.0,0.00019863,2]
[329239487,1718196664829,-500.0,0.00019863,2]
[329239488,1718196664842,-500.0,0.00019863,2]
[329239489,1718196664863,-500.0,0.00019863,2]
[329239490,1718196664878,-500.0,0.00019863,2]
[329239491,1718196664889,-500.0,0.00019863,2]
[329239492,1718196664902,-1573.61,0.00019863,2]
[329239493,1718196664915,-500.0,0.00019863,2]
[329239494,1718196664936,-500.0,0.00019863,2]
[329239495,1718196664949,-790.53,0.00019863,2]
[329239496,1718196664963,-500.0,0.00019863,2]
[329239497,1718196664974,-500.0,0.00019863,2]
[329239498,1718196664987,-500.0,0.00019863,2]
[329239499,1718196664999,-500.0,0.00019863,2]
[329239500,1718196665010,-578.59235999,0.00019863,2]
[329239501,1718196665028,-500.0,0.00019863,2]
[329239502,1718196665041,-500.0,0.00019863,2]
[329239503,1718196665054,-1771.0,0.00019883,2]
[329239504,1718196665066,-170.36944065,0.000199,2]
[329239505,1718196665077,-979.0,0.00019917,2]
[329239506,1718196665095,-359.0,0.00019917,2]
[329239507,1718196665108,-1749.153,0.00019917,2]
[329239508,1718196665119,-441.0,0.00019917,2]
[329239509,1718196665131,-616.0,0.00019917,2]
[329239510,1718196665141,-1830.0,0.00019917,2]
[329239511,1718196665151,-1269.0,0.00019917,2]
[329239512,1718196665167,-808.0,0.00019917,2]
[329239513,1718196665179,-150.0,0.00019917,2]
[329239514,1718196665189,-2407.0,0.00019917,2]
[329239515,1718196665199,-3177.0,0.00019917,2]
[329239516,1718196665209,-1304.0,0.00019917,2]
[329239517,1718196665220,-630.917,0.00019917,2]
[329239518,1718196665232,-1979.0,0.00019917,2]
[329239519,1718196665243,-5787.0,0.00019917,2]
[329239520,1718196665274,-1657.0,0.00019917,2]
[329239521,1718196665287,-1190.036,0.00019917,2]
[329239522,1718196665302,-151.0,0.00019917,2]
[329239523,1718196665315,-5157.0,0.00019917,2]
[329239524,1718196665326,-290.0,0.00019917,2]
[329239525,1718196665337,-1580.999,0.00019917,2]
[329239526,1718196665348,-1066.0,0.00019917,2]
[329239527,1718196665359,-151.0,0.00019917,2]
[329239528,1718196665374,-205.27186,0.00019917,2]
[329239529,1718196665387,-205.27186,0.00019917,2]
[329239530,1718196665401,-2255.52,0.00019999,2]
[329239531,1718196665416,-158.49794651,0.0002,2]
[329239532,1718196665427,-865.36098931,0.0002,2]
[329239533,1718196665439,-3000.0,0.0002,2]
[329239534,1718196665451,-6263.53071247,0.0002,2]
[329239535,1718196665469,-151.718569,0.0002,2]
[329239536,1718196665489,-151.0,0.0002,2]
[329239537,1718196665501,-1257.91649181,0.0002,2]
[329239538,1718196665512,-489.83788115,0.0002,2]
[329239539,1718196665524,-302.21338769,0.0002,2]
[329239540,1718196665536,-500.0,0.0002,2]
[329239541,1718196665549,-500.0,0.0002,2]
[329239542,1718196665560,-531.76181328,0.0002,2]
[329239543,1718196665571,-500.0,0.0002,2]
[329239544,1718196665581,-500.0,0.0002,2]
[329239545,1718196665595,-639.55,0.0002,2]
[329239546,1718196665607,-35113.42250913,0.0002,2]
[329239547,1718196665619,-500.0,0.0002,2]
[329239548,1718196665630,-500.0,0.0002,2]
[329239549,1718196665644,-610.53,0.0002,2]
[329239550,1718196665654,-977.0,0.0002,2]
[329239551,1718196665669,-500.0,0.0002,2]
[329239552,1718196665680,-500.0,0.0002,2]
[329239553,1718196665693,-607.52,0.0002,2]
[329239554,1718196665708,-500.0,0.0002,2]
[329239555,1718196665719,-500.0,0.0002,2]
[329239556,1718196665735,-818.8,0.0002,2]
[329239557,1718196665746,-547.42,0.0002,2]
[329239558,1718196665757,-500.0,0.0002,2]
[329239559,1718196665770,-188.97512994,0.0002,2]
[329239560,1718196665782,-778.08,0.0002,2]
[329239561,1718196665796,-3895.51366502,0.0002,2]
[329239562,1718196665812,-595.62,0.0002,2]
[329239563,1718196665823,-500.0,0.0002,2]
[329239564,1718196665836,-555.08,0.0002,2]
[329239565,1718196665847,-483.78506373,0.0002,2]
[329239566,1718196665858,-500.0,0.0002,2]
[329239567,1718196665868,-758.41,0.0002,2]
[329239568,1718196665879,-604.40869763,0.0002,2]
[329239569,1718196665890,-500.0,0.0002,2]
[329239570,1718196665902,-1270.18852319,0.0002,2]
[329239571,1718196665917,-156.10900991,0.0002,4]
[329239572,1718196665927,-160.80473435,0.0002,2]
[329239573,1718196665936,-500.0,0.0002,2]
[329239574,1718196665947,-500.0,0.0002,2]
[329239575,1718196665957,-500.0,0.0002,2]
[329239576,1718196665967,-986.4616647,0.0002,2]
[329239577,1718196665978,-500.0,0.0002,2]
[329239578,1718196665999,-500.0,0.0002,2]
[329239579,1718196666011,-589.34741809,0.0002,2]
[329239580,1718196666024,-500.0,0.0002,2]
[329239581,1718196666035,-868.83,0.0002,2]
[329239582,1718196666046,-208.037364,0.0002,2]
[329239583,1718196666058,-500.0,0.0002,2]
[329239584,1718196666069,-500.0,0.0002,2]
[329239585,1718196666082,-500.0,0.0002,2]
[329239586,1718196666094,-500.0,0.0002,2]
[329239587,1718196666110,-326.50026362,0.0002,2]
[329239588,1718196666122,-500.0,0.0002,2]
[329239589,1718196666133,-500.0,0.0002,2]
[329239590,1718196666144,-1573.61,0.0002,2]
[329239591,1718196666156,-500.0,0.0002,2]
[329239592,1718196666173,-500.0,0.0002,2]
[329239593,1718196666185,-790.53,0.0002,2]
[329239594,1718196666201,-500.0,0.0002,2]
[329239595,1718196666212,-500.0,0.0002,2]
[329239596,1718196666223,-500.0,0.0002,2]
[329239597,1718196666234,-500.0,0.0002,2]
[329239598,1718196666245,-500.0,0.0002,2]
[329239599,1718196666275,-500.0,0.0002,2]
[329239600,1718196666287,-250.0,0.00020001,2]
[329239601,1718196666297,-226.74152349,0.000201,2]
[329239602,1718196666308,-629.89,0.00020136,2]
[329239603,1718196666319,-628.06954528,0.00020136,2]
[329239604,1718196666329,-500.0,0.00020136,2]
[329239605,1718196666340,-500.0,0.00020136,2]
[329239606,1718196666351,-204.37,0.00020136,2]
[329239607,1718196666361,-500.0,0.00020136,2]
[329239608,1718196666372,-610.53,0.00020136,2]
[329239609,1718196666382,-977.0,0.00020136,2]
[329239610,1718196666392,-401.93219854,0.00020136,2]
[329239611,1718196666402,-500.0,0.00020136,2]
[329239612,1718196666420,-607.52,0.00020136,2]
[329239613,1718196666430,-500.0,0.00020136,2]
[329239614,1718196666441,-500.0,0.00020136,2]
[329239615,1718196666452,-818.8,0.00020136,2]
[329239616,1718196666462,-500.0,0.00020136,2]
[329239617,1718196666473,-778.08,0.00020136,2]
[329239618,1718196666484,-595.62,0.00020136,2]
[329239619,1718196666495,-500.0,0.00020136,2]
[329239620,1718196666505,-555.08,0.00020136,2]
[329239621,1718196666523,-500.0,0.00020136,2]
[329239622,1718196666539,-758.41,0.00020136,2]
[329239623,1718196666550,-429.10965933,0.00020136,2]
[329239624,1718196666562,-500.0,0.00020136,2]
[329239625,1718196666573,-500.0,0.00020136,2]
[329239626,1718196666584,-500.0,0.00020136,2]
[329239627,1718196666597,-500.0,0.00020136,2]
[329239628,1718196666608,-500.0,0.00020136,2]
[329239629,1718196666622,-500.0,0.00020136,2]
[329239630,1718196666634,-868.83,0.00020136,2]
[329239631,1718196666646,-500.0,0.00020136,2]
[329239632,1718196666671,-500.0,0.00020136,2]
[329239633,1718196666683,-500.0,0.00020136,2]
[329239634,1718196666696,-500.0,0.00020136,2]
[329239635,1718196666770,-500.0,0.00020136,2]
[329239636,1718196666790,-500.0,0.00020136,2]
[329239637,1718196666804,-1573.61,0.00020136,2]
[329239638,1718196666824,-500.0,0.00020136,2]
[329239639,1718196666835,-500.0,0.00020136,2]
[329239640,1718196666847,-790.53,0.00020136,2]
[329239641,1718196666859,-500.0,0.00020136,2]
[329239642,1718196666870,-500.0,0.00020136,2]
[329239643,1718196666882,-500.0,0.00020136,2]
[329239644,1718196666894,-500.0,0.00020136,2]
[329239645,1718196666906,-500.0,0.00020136,2]
[329239646,1718196666921,-1076.67,0.00020157,2]
[329239647,1718196666933,-1644.51,0.00020161,2]
[329239648,1718196666948,-500.0,0.00020273,2]
[329239649,1718196666962,-500.0,0.00020273,2]
[329239650,1718196666973,-500.0,0.00020273,2]
[329239651,1718196666984,-166.710839,0.00020273,2]
[329239652,1718196666995,-610.53,0.00020273,2]
[329239653,1718196667024,-977.0,0.00020273,2]
[329239654,1718196667034,-500.0,0.00020273,2]
[329239655,1718196667045,-607.52,0.00020273,2]
[329239656,1718196667056,-500.0,0.00020273,2]
[329239657,1718196667067,-500.0,0.00020273,2]
[329239658,1718196667082,-818.8,0.00020273,2]
[329239659,1718196667103,-500.0,0.00020273,2]
[329239660,1718196667118,-778.08,0.00020273,2]
[329239661,1718196667135,-595.62,0.00020273,2]
[329239662,1718196667153,-500.0,0.00020273,2]
[329239663,1718196667187,-555.08,0.00020273,2]
[329239664,1718196667211,-500.0,0.00020273,2]
[329239665,1718196667236,-758.41,0.00020273,2]
[329239666,1718196667261,-500.0,0.00020273,2]
[329239667,1718196667293,-500.0,0.00020273,2]
[329239668,1718196667306,-500.0,0.00020273,2]
[329239669,1718196667320,-500.0,0.00020273,2]
[329239670,1718196667336,-500.0,0.00020273,2]
[329239671,1718196667348,-500.0,0.00020273,2]
[329239672,1718196667363,-868.83,0.00020273,2]
[329239673,1718196667376,-500.0,0.00020273,2]
[329239674,1718196667412,-500.0,0.00020273,2]
[329239675,1718196667440,-500.0,0.00020273,2]
[329239676,1718196667453,-500.0,0.00020273,2]
[329239677,1718196667465,-500.0,0.00020273,2]
[329239678,1718196667479,-1573.61,0.00020273,2]
[329239679,1718196667494,-500.0,0.00020273,2]
[329239680,1718196667508,-500.0,0.00020273,2]
[329239681,1718196667532,-790.53,0.00020273,2]
[329239682,1718196667544,-500.0,0.00020273,2]
[329239683,1718196667555,-500.0,0.00020273,2]
[329239684,1718196667566,-500.0,0.00020273,2]
[329239685,1718196667583,-500.0,0.00020273,2]
[329239686,1718196667604,-500.0,0.00020273,2]
[329239687,1718196667644,-305.37,0.00020276,2]
[329239688,1718196667662,-2100.0,0.00020276,2]
[329239689,1718196667676,-500.0,0.0002041,2]
[329239690,1718196667692,-500.0,0.0002041,2]
[329239691,1718196667704,-500.0,0.0002041,2]
[329239692,1718196667716,-610.53,0.0002041,2]
[329239693,1718196667739,-977.0,0.0002041,2]
[329239694,1718196667752,-500.0,0.0002041,2]
[329239695,1718196667764,-607.52,0.0002041,2]
[329239696,1718196667775,-500.0,0.0002041,2]
[329239697,1718196667787,-500.0,0.0002041,2]
[329239698,1718196667797,-818.8,0.0002041,2]
[329239699,1718196667812,-500.0,0.0002041,2]
[329239700,1718196667825,-778.08,0.0002041,2]
[329239701,1718196667837,-595.62,0.0002041,2]
[329239702,1718196667850,-500.0,0.0002041,2]
[329239703,1718196667869,-555.08,0.0002041,2]
[329239704,1718196667887,-500.0,0.0002041,2]
[329239705,1718196667898,-758.41,0.0002041,2]
[329239706,1718196667914,-500.0,0.0002041,2]
[329239707,1718196667926,-500.0,0.0002041,2]
[329239708,1718196667938,-500.0,0.0002041,2]
[329239709,1718196667949,-500.0,0.0002041,2]
[329239710,1718196667962,-500.0,0.0002041,2]
[329239711,1718196667972,-500.0,0.0002041,2]
[329239712,1718196667986,-868.83,0.0002041,2]
[329239713,1718196668006,-500.0,0.0002041,2]
[329239714,1718196668019,-500.0,0.0002041,2]
[329239715,1718196668032,-500.0,0.0002041,2]
[329239716,1718196668047,-500.0,0.0002041,2]
[329239717,1718196668073,-500.0,0.0002041,2]
[329239718,1718196668103,-1573.61,0.0002041,2]
[329239719,1718196668116,-500.0,0.0002041,2]
[329239720,1718196668129,-500.0,0.0002041,2]
[329239721,1718196668149,-790.53,0.0002041,2]
[329239722,1718196668165,-500.0,0.0002041,2]
[329239723,1718196668178,-500.0,0.0002041,2]
[329239724,1718196668190,-500.0,0.0002041,2]
[329239725,1718196668203,-500.0,0.0002041,2]
[329239726,1718196668214,-500.0,0.0002041,2]
[329239727,1718196668226,-800.0,0.00020424,2]
[329239728,1718196668239,-839.201242,0.00020501,2]
[329239729,1718196668268,-175.80696,0.00020501,2]
[329239730,1718196668287,-434.894191,0.00020501,2]
[329239731,1718196668299,-883.315605,0.00020501,2]
[329239732,1718196668328,-176.759103,0.00020501,2]
[329239733,1718196668344,-182.048031,0.00020501,2]
[329239734,1718196668364,-500.0,0.00020547,2]
[329239735,1718196668381,-500.0,0.00020547,2]
[329239736,1718196668396,-500.0,0.00020547,2]
[329239737,1718196668422,-610.53,0.00020547,2]
[329239738,1718196668433,-977.0,0.00020547,2]
[329239739,1718196668448,-500.0,0.00020547,2]
[329239740,1718196668462,-607.52,0.00020547,2]
[329239741,1718196668481,-500.0,0.00020547,2]
[329239742,1718196668494,-500.0,0.00020547,2]
[329239743,1718196668508,-818.8,0.00020547,2]
[329239744,1718196668519,-500.0,0.00020547,2]
[329239745,1718196668534,-778.08,0.00020547,2]
[329239746,1718196668550,-595.62,0.00020547,2]
[329239747,1718196668561,-500.0,0.00020547,2]
[329239748,1718196668574,-555.08,0.00020547,2]
[329239749,1718196668594,-375.28746839,0.00020547,2]
[329239750,1718196668616,-758.41,0.00020547,2]
[329239751,1718196668628,-500.0,0.00020547,2]
[329239752,1718196668643,-500.0,0.00020547,2]
[329239753,1718196668656,-500.0,0.00020547,2]
[329239754,1718196668671,-500.0,0.00020547,2]
[329239755,1718196668683,-500.0,0.00020547,2]
[329239756,1718196668695,-500.0,0.00020547,2]
[329239757,1718196668708,-868.83,0.00020547,2]
[329239758,1718196668724,-500.0,0.00020547,2]
[329239759,1718196668736,-500.0,0.00020547,2]
[329239760,1718196668748,-500.0,0.00020547,2]
[329239761,1718196668762,-500.0,0.00020547,2]
[329239762,1718196668774,-500.0,0.00020547,2]
[329239763,1718196668787,-1573.61,0.00020547,2]
[329239764,1718196668802,-500.0,0.00020547,2]
[329239765,1718196668814,-500.0,0.00020547,2]
[329239766,1718196668827,-790.53,0.00020547,2]
[329239767,1718196668839,-500.0,0.00020547,2]
[329239768,1718196668850,-500.0,0.00020547,2]
[329239769,1718196668862,-324.99275405,0.00020547,2]
[329239770,1718196668873,-500.0,0.00020547,2]
[329239771,1718196668884,-500.0,0.00020547,2]
[329239772,1718196668896,-454.07445159,0.00020549,2]
[329239773,1718196668908,-668.26,0.00020619,2]
[329239774,1718196668922,-170.82,0.00020674,2]
[329239775,1718196668942,-500.0,0.00020684,2]
[329239776,1718196668958,-500.0,0.00020684,2]
[329239777,1718196668972,-500.0,0.00020684,2]
[329239778,1718196668989,-610.53,0.00020684,2]
[329239779,1718196669000,-977.0,0.00020684,2]
[329239780,1718196669013,-500.0,0.00020684,2]
[329239781,1718196669025,-607.52,0.00020684,2]
[329239782,1718196669039,-500.0,0.00020684,2]
[329239783,1718196669060,-500.0,0.00020684,2]
[329239784,1718196669071,-818.8,0.00020684,2]
[329239785,1718196669085,-500.0,0.00020684,2]
[329239786,1718196669097,-778.08,0.00020684,2]
[329239787,1718196669113,-595.62,0.00020684,2]
[329239788,1718196669134,-500.0,0.00020684,2]
[329239789,1718196669149,-555.08,0.00020684,2]
[329239790,1718196669166,-758.41,0.00020684,2]
[329239791,1718196669183,-500.0,0.00020684,2]
[329239792,1718196669194,-500.0,0.00020684,2]
[329239793,1718196669206,-500.0,0.00020684,2]
[329239794,1718196669220,-500.0,0.00020684,2]
[329239795,1718196669232,-500.0,0.00020684,2]
[329239796,1718196669244,-500.0,0.00020684,2]
[329239797,1718196669279,-868.83,0.00020684,2]
[329239798,1718196669292,-500.0,0.00020684,2]
[329239799,1718196669304,-500.0,0.00020684,2]
[329239800,1718196669317,-500.0,0.00020684,2]
[329239801,1718196669328,-500.0,0.00020684,2]
[329239802,1718196669343,-500.0,0.00020684,2]
[329239803,1718196669354,-1573.61,0.00020684,2]
[329239804,1718196669366,-500.0,0.00020684,2]
[329239805,1718196669380,-500.0,0.00020684,2]
[329239806,1718196669391,-790.53,0.00020684,2]
[329239807,1718196669402,-500.0,0.00020684,2]
[329239808,1718196669415,-500.0,0.00020684,2]
[329239809,1718196669426,-500.0,0.00020684,2]
[329239810,1718196669440,-477.16988359,0.00020684,2]
[329239811,1718196669459,-10756.88945588,0.000207,2]
[329239812,1718196669480,-20577.26797227,0.00020718,2]
[329239813,1718196669497,-839.201242,0.00020757,2]
[329239814,1718196669512,-434.894191,0.00020757,2]
[329239815,1718196669530,-883.315605,0.00020757,2]
[329239816,1718196669543,-500.0,0.00020821,2]
[329239817,1718196669582,-500.0,0.00020821,2]
[329239818,1718196669603,-500.0,0.00020821,2]
[329239819,1718196669621,-610.53,0.00020821,2]
[329239820,1718196669641,-977.0,0.00020821,2]
[329239821,1718196669654,-500.0,0.00020821,2]
[329239822,1718196669667,-607.52,0.00020821,2]
[329239823,1718196669685,-500.0,0.00020821,2]
[329239824,1718196669699,-500.0,0.00020821,2]
[329239825,1718196669710,-818.8,0.00020821,2]
[329239826,1718196669728,-500.0,0.00020821,2]
[329239827,1718196669739,-778.08,0.00020821,2]
[329239828,1718196669751,-595.62,0.00020821,2]
[329239829,1718196669766,-500.0,0.00020821,2]
[329239830,1718196669777,-555.08,0.00020821,2]
[329239831,1718196669791,-758.41,0.00020821,2]
[329239832,1718196669803,-500.0,0.00020821,2]
[329239833,1718196669818,-500.0,0.00020821,2]
[329239834,1718196669829,-500.0,0.00020821,2]
[329239835,1718196669842,-500.0,0.00020821,2]
[329239836,1718196669856,-441.41,0.00020821,2]
[329239837,1718196669869,-500.0,0.00020821,2]
[329239838,1718196669885,-868.83,0.00020821,2]
[329239839,1718196669897,-500.0,0.00020821,2]
[329239840,1718196669913,-500.0,0.00020821,2]
[329239841,1718196669927,-500.0,0.00020821,2]
[329239842,1718196669942,-500.0,0.00020821,2]
[329239843,1718196669957,-500.0,0.00020821,2]
[329239844,1718196669971,-1573.61,0.00020821,2]
[329239845,1718196669987,-500.0,0.00020821,2]
[329239846,1718196670005,-500.0,0.00020821,2]
[329239847,1718196670017,-790.53,0.00020821,2]
[329239848,1718196670029,-500.0,0.00020821,2]
[329239849,1718196670046,-500.0,0.00020821,2]
[329239850,1718196670066,-500.0,0.00020821,2]
[329239851,1718196670091,-151.0,0.00020913,2]
[329239852,1718196670109,-232.732742,0.00020927,2]
[329239853,1718196670135,-205.27186,0.00020927,2]
[329239854,1718196670167,-205.27186,0.00020927,2]
[329239855,1718196670182,-285.535135,0.00020928,2]
[329239856,1718196670200,-2053.963986,0.00020928,2]
[329239857,1718196670213,-1581.11475,0.00020928,2]
[329239858,1718196670228,-277.904783,0.00020928,2]
[329239859,1718196670251,-157.107009,0.00020928,2]
[329239860,1718196670291,-2673.245382,0.00020928,2]
[329239861,1718196670303,-176.826944,0.00020928,2]